[Event "Lliga Catalana DH 2023"]
[Site "Catalonia"]
[Date "2023.03.18"]
[Round "9.9"]
[White "Travesset Ribera, Daniel"]
[Black "Roa Ribera, Alvaro"]
[Result "0-1"]
[ECO "A07"]
[WhiteElo "2094"]
[BlackElo "1918"]
[Annotator "TA"]
[PlyCount "80"]
[EventDate "2023.01.24"]
[EventType "team-tourn"]
[EventCountry "ESP"]
[SourceTitle "playchess.com"]
[Source "ChessBase"]
[SourceQuality "1"]
[TimeControl "40/5400+30:1800+30"]

{[%evp 9,80,12,15,15,18,10,25,19,35,-12,0,0,0,-4,13,-24,2,-28,-25,-50,0,-52,-54,-72,-55,-65,-63,-68,-69,-63,-63,-115,-120,-215,-222,-349,-291,-578,-558,-660,-593,-592,-593,-588,-591,-610,-605,-670,-668,-727,-720,-789,-735,-754,-678,-921,-902,-1164,-1154,-1124,-1085,-1634,-1631,-1386,-1271,-5818,-5320,-5037,-5029,-5356,-5400,-5814,-5129]} 1. Nf3 {[%emt 0:12:10]} d5 {[%emt 0:03:58]} 2. b3 {[%emt 0:02:34]} Bf5 {[%emt 0:01:59]} 3. Bb2 {[%emt 0:00:15]} Nf6 {[%emt 0:00:34]} 4. g3 {[%emt 0:00:22]} e6 {[%emt 0:02:23]} 5. Bg2 {[%emt 0:00:36]} Bd6 {[%emt 0:00:03]} 6. d3 {[%emt 0:00:42] A07: Réti Opening: New York and Capablanca Systems.} O-O {[%emt 0:03:40]} 7. Nbd2 {[%emt 0:00:04]} Re8 {[%emt 0:00:57]} 8. O-O {[%emt 0:07:02][%cal Oe2e4] White has an edge.} e5 {[%emt 0:05:12] [#]} 9. Nh4 $146 {[%emt 0:42:11]} (9. e4 $14 dxe4 10. dxe4) ({Predecessor:} 9. c4 c6 10. Rc1 Nbd7 11. Nh4 Bg4 12. h3 Be6 13. Qc2 a5 14. a3 Qe7 15. Nb1 {½-½ Stursa,J (2085)-Marsalek,L (1908) Rakovnik Regional-chT 1415 2014 (7.4)}) 9... Bg4 {[%emt 0:03:16]} 10. h3 {[%emt 0:00:27]} Be6 {[%emt 0:25:53]} 11. e4 {[%emt 0:01:07]} Nc6 {[%emt 0:00:41]} 12. Re1 {[%emt 0:13:13]} Qd7 {[%emt 0:07:31]} 13. Kh2 {[%emt 0:03:30]} Bc5 {[%emt 0:00:27]} 14. Rf1 {[%emt 0:01:49]} Rad8 {[%emt 0:02:13]} (14... dxe4 $15 15. Nxe4 Nxe4 16. Bxe4 g6) 15. exd5 {[%emt 0:04:51]} ({White should play} 15. f4 $11 exf4 16. Rxf4) 15... Bxd5 $15 {[%emt 0:03:43]} 16. Bxd5 {[%emt 0:02:57]} Qxd5 {[%emt 0:01:03]} (16... Nxd5 {simplifies} 17. Nhf3 Re6 18. Ne4 Be7) 17. Qf3 {[%emt 0:09:13]} e4 {[%emt 0:07:13] Black is more active.} 18. Nxe4 {[%emt 0:00:21]} Nxe4 {[%emt 0:00:02]} 19. dxe4 {[%emt 0:00:12]} Qxe4 {[%emt 0:00:02]} 20. Qxe4 {[%emt 0:03:32] Black continues to play with concentration.} (20. Kg1 $15) 20... Rxe4 $17 {[%emt 0:00:21]} 21. Nf5 {[%emt 0:00:25]} (21. Rae1 $17 Rxe1 22. Rxe1) 21... Re2 $19 {[%emt 0:01:24][%csl LRc2,LRf2] Hoping for ...Rdd2.} 22. Bxg7 {[%emt 0:00:36]} (22. Kg1 {was necessary.}) 22... Rdd2 {[%emt 0:02:22]} ({Stronger than} 22... Rxf2+ 23. Rxf2 Bxf2 24. Bh6 $11) 23. g4 $2 {[%emt 0:01:03]} (23. Kh1 Rd5 24. g4 Rxf5 {[%mdl 64] Remove Defender} 25. gxf5 Kxg7 26. Kg2) 23... Bxf2 {[%emt 0:01:30] Black is clearly winning.} ({And not} 23... Rxc2 24. Kg3 $17) (23... Rxf2+ 24. Rxf2 Rxf2+ 25. Kg3 $19) 24. Rfd1 {[%emt 0:02:09]} Bd4+ {[%emt 0:00:32]} 25. Kg3 {[%emt 0:00:18]} Bxg7 {[%emt 0:00:19]} 26. Rxd2 {[%emt 0:00:13]} Rxd2 {[%emt 0:00:28]} 27. Re1 {[%emt 0:00:41]} Kf8 {[%emt 0:02:07] Dodges Re8+} (27... Rxc2 $2 {perishes.} 28. Re8+ Bf8 29. Nh6+ Kg7 30. Nf5+ Kf6 31. Rxf8 $19) 28. c4 {[%emt 0:00:52]} Rxa2 {[%emt 0:04:03]} 29. Rd1 {[%emt 0:00:24]} Rc2 {[%emt 0:01:26]} 30. Kh4 {[%emt 0:00:48]} a5 {[%emt 0:07:24] [#] ...Rc3 would be deadly.} 31. Rd7 {[%emt 0:00:14]} Be5 {[%emt 0:00:09] aiming for ...Rc3.} 32. Nh6 {[%emt 0:00:27]} Rf2 {[%emt 0:00:16] White must now prevent ...Rf3.} 33. Rd5 {[%emt 0:00:48]} Rf3 {[%emt 0:02:35]} 34. Rb5 {[%emt 0:00:29]} b6 {[%emt 0:00:11]} 35. Nf5 {[%emt 0:00:33]} Rd3 {[%emt 0:01:07]} 36. g5 {[%emt 0:00:42]} Bh2 {[%emt 0:01:14] [#] And now ...Nd4 would win.} 37. Nh6 {[%emt 0:00:55]} Nd4 {[%emt 0:01:08]} 38. Rd5 {[%emt 0:00:59]} Nf3+ {[%emt 0:00:21]} 39. Kg4 {[%emt 0:00:10]} Rxd5 {[%emt 0:00:07]} 40. cxd5 {[%emt 0:00:07]} Nd2 {[%emt 0:00:07] Weighted Error Value: White=0.60/Black=0.16 (very precise)} 0-1

[Event "Lliga Catalana DH 2023"]
[Site "Catalonia"]
[Date "2023.03.18"]
[Round "9.10"]
[White "Martinez Talavera, Jordi"]
[Black "Pueyo Burrell, David"]
[Result "0-1"]
[ECO "A41"]
[WhiteElo "1950"]
[BlackElo "2067"]
[Annotator "TA"]
[PlyCount "76"]
[EventDate "2023.01.24"]
[EventType "team-tourn"]
[EventCountry "ESP"]
[SourceTitle "playchess.com"]
[Source "ChessBase"]
[SourceQuality "1"]
[TimeControl "40/5400+30:1800+30"]

{[%evp 10,76,0,0,0,-5,-4,-67,-65,-83,-68,-72,-62,-232,-211,-240,-253,-291,-298,-293,-291,-292,-242,-231,-230,-205,-220,-321,-321,-325,-316,-454,-436,-489,-489,-490,-487,-487,-481,-475,-468,-454,-399,-363,-371,-444,-441,-494,-468,-458,-445,-590,-589,-706,-705,-745,-734,-910,-903,-871,-866,-863,-850,-788,-778,-2389,-2137,-5097,-2456]} 1. d4 {[%emt 0:01:08]} g6 2. Bf4 {[%emt 0:00:00]} Bg7 {[%emt 0:00:38]} 3. e3 {[%emt 0:00:00]} d6 {[%emt 0:00:17]} 4. Nf3 {[%emt 0:00:50]} Nd7 {[%emt 0:00:44]} 5. c3 {[%emt 0:00:00]} e5 {[%emt 0:00:43]} 6. Bg3 {[%emt 0:01:54]} Qe7 {[%emt 0:03:30] A41: 1 d4 d6: Tartakower System and Modern Defence.} 7. Be2 {[%emt 0:03:25]} Nh6 {[%emt 0:00:17] [#]} 8. Qb3 $146 {[%emt 0:23:36]} (8. h3 $11) ({Predecessor:} 8. Bh4 f6 9. dxe5 dxe5 10. e4 O-O 11. O-O Nc5 12. Qc2 g5 13. Bg3 f5 14. exf5 Nxf5 {0-1 Collier,D (2098)-Hillarp Persson,T (2556) Guernsey op 38th 2012 (2)}) 8... Nf5 $15 {[%emt 0:08:24] Black is slightly better.} 9. Nbd2 {[%emt 0:02:21]} e4 {[%emt 0:04:00]} 10. Ng1 {[%emt 0:00:09]} h5 {[%emt 0:01:30]} 11. Qd5 $2 {[%emt 0:22:33]} (11. Nh3 $15) 11... Nf6 $19 {[%emt 0:09:59]} 12. Qb3 {[%emt 0:00:26] [#]} Bh6 {[%emt 0:02:51]} 13. h4 {[%emt 0:08:57]} Nxg3 {[%emt 0:04:20]} 14. fxg3 {[%emt 0:00:44]} Bxe3 {[%emt 0:00:43]} 15. Nh3 {[%emt 0:00:58]} Bxh3 {[%emt 0:15:47]} 16. gxh3 {[%emt 0:01:55]} Bxd2+ {[%emt 0:09:58]} 17. Kxd2 {[%emt 0:00:37]} e3+ {[%emt 0:00:59]} 18. Ke1 {[%emt 0:04:44]} (18. Kc1 {was worth a try.}) 18... Ne4 {[%emt 0:02:01]} 19. Rg1 {[%emt 0:00:34]} O-O-O {[%emt 0:04:42][%cal Oe4g3]} 20. c4 {[%emt 0:07:00]} (20. Bf3 {might work better.}) 20... Nd2 {[%emt 0:00:41]} 21. Qd3 {[%emt 0:02:02]} Rhe8 {[%emt 0:01:56]} 22. Kd1 {[%emt 0:08:03]} Qf6 {[%emt 0:03:18]} 23. Kc2 {[%emt 0:00:33]} c5 {[%emt 0:02:22] ...d5 is the strong threat.} 24. Raf1 {[%emt 0:06:20]} Nxf1 {[%emt 0:02:36]} 25. Rxf1 {[%emt 0:00:02]} Qxd4 {[%emt 0:02:54]} 26. Qxd4 {[%emt 0:00:17]} cxd4 {[%emt 0:00:04][%mdl 4096] Endgame KRR-KRB} 27. Kd3 {[%emt 0:01:24]} f5 {[%emt 0:01:41] Black is clearly winning.} 28. g4 {[%emt 0:00:11]} hxg4 {[%emt 0:00:54]} 29. hxg4 {[%emt 0:00:08]} d5 {[%emt 0:00:39] ...dxc4+ would be deadly.} 30. c5 {[%emt 0:01:17]} fxg4 {[%emt 0:03:10]} 31. Bxg4+ {[%emt 0:00:12]} Kb8 {[%emt 0:00:08]} 32. Rf6 {[%emt 0:01:09]} Rh8 {[%emt 0:01:08]} 33. Rxg6 {[%emt 0:02:22]} Rxh4 {[%emt 0:00:26]} 34. Bf3 {[%emt 0:00:13]} Rf4 {[%emt 0:00:57]} 35. Be2 {[%emt 0:00:49]} Rf2 {[%emt 0:00:40] Strongly threatening ...Rh8.} 36. Rg4 {[%emt 0:00:19]} Rh8 {[%emt 0:00:24][%cal Of2e2] aiming for ...Rxe2!} 37. Rg1 {[%emt 0:01:01] [#]} Rxe2 $1 {[%emt 0:01:53]} 38. Kxe2 {[%emt 0:00:14]} (38. Kxd4 Rh4+) 38... Rh2+ {[%emt 0:00:01][%mdl 64] Skewer. White got outplayed after the opening.   Weighted Error Value: White=0.76/Black=0.06 (flawless)} 0-1

[Event "Lliga Catalana DH 2023"]
[Site "Catalonia"]
[Date "2023.03.18"]
[Round "9.10"]
[White "Diaz Comas, Jordi"]
[Black "Pang, Khai Jie Ryan"]
[Result "0-1"]
[ECO "C28"]
[WhiteElo "1839"]
[BlackElo "1841"]
[Annotator "NA COMBH"]
[PlyCount "39"]
[EventDate "2023.01.24"]
[EventType "team-tourn"]
[EventCountry "ESP"]
[SourceTitle "playchess.com"]
[Source "ChessBase"]
[SourceQuality "1"]
[TimeControl "40/5400+30:1800+30"]

1. e4 e5 2. Bc4 Nc6 3. Nc3 Nf6 4. d3 Bc5 5. a3 a6 6. f4 exf4 7. Bxf4 d6 8. Bg5 h6 9. Bh4 Be6 10. Nd5 g5 11. Bg3 Bxd5 12. exd5 Nd4 13. c3 Nf5 14. Qf3 Qe7+ 15. Ne2 Ne3 16. Kd2 g4 17. Qf4 Nh5 18. Qe4 Qxe4 19. dxe4 Nxc4+ 20. Ke1 0-1

[Event "Lliga Catalana DH 2023"]
[Site "Catalonia"]
[Date "2023.04.15"]
[Round "11.1"]
[White "Gines Esteo, Pedro Antonio"]
[Black "Van Foreest, Lucas"]
[Result "1/2-1/2"]
[ECO "D37"]
[WhiteElo "2505"]
[BlackElo "2570"]
[Annotator "TA"]
[PlyCount "222"]
[EventDate "2023.01.24"]
[EventType "team-tourn"]
[EventCountry "ESP"]
[SourceTitle "playchess.com"]
[Source "ChessBase"]
[SourceQuality "1"]
[TimeControl "40/5400+30:1800+30"]

{[%evp 48,221,53,52,58,35,34,30,100,94,88,90,104,99,98,57,84,0,95,0,77,80,89,56,54,54,58,63,46,35,34,33,33,35,34,0,0,0,0,0,0,0,0,0,12,0,0,0,0,-8,-8,-10,-8,-23,-23,-22,-19,-19,-17,-17,-17,-17,-23,-14,-16,-32,-42,-33,-49,-114,-114,-114,-131,-132,-139,-142,-139,-139,-139,-125,-114,-107,-110,-117,-60,-60,-60,-106,-106,-105,-8,-8,-8,-8,-8,-8,-8,-8,-8,-8,-8,-8,-8,-8,-8,-8,-8,-8,-8,-8,-8,-8,-8,-8,-8,-8,-8,-8,-8,-8,-8,-8,-8,-8,-8,-8,-8,-8,-8,-8,-8,-8,-8,-8,-8,-8,-8,-8,-8,-8,-8,-8,-8,-8,-8,-8,-8,-8,0,-8,-8,-8,0,-8,0,-8,-8,-8,-8,-8,0,-8,-8,-8,-8,-8,-8,-8,0,-8,-8,-8,-8,-8,-8,-8]} 1. c4 {[%emt 0:00:11]} e6 {[%emt 0:00:04]} 2. Nc3 {[%emt 0:01:50]} d5 {[%emt 0:00:06]} 3. d4 {[%emt 0:00:29]} a6 {[%emt 0:00:03]} 4. cxd5 {[%emt 0:01:02]} exd5 {[%emt 0:00:15]} 5. Nf3 {[%emt 0:00:04]} Nf6 {[%emt 0:00:13]} 6. Bg5 {[%emt 0:00:53]} Be6 {[%emt 0:00:06]} 7. Bxf6 {[%emt 0:13:07]} Qxf6 {[%emt 0:00:06]} 8. Qb3 {[%emt 0:00:04]} Ra7 {[%emt 0:00:05]} 9. g3 {[%emt 0:00:03]} Qd8 {[%emt 0:02:54]} 10. h4 {[%emt 0:03:56]} Be7 {[%emt 0:02:14]} 11. Bh3 {[%emt 0:01:05]} Bxh3 {[%emt 0:00:10]} 12. Rxh3 {[%emt 0:00:04]} c6 {[%emt 0:00:06]} 13. e4 {[%emt 0:10:22]} dxe4 {[%emt 0:06:28]} 14. Nxe4 {[%emt 0:00:29]} O-O {[%emt 0:16:33]} 15. O-O-O {[%emt 0:01:56]} Qd5 {[%emt 0:05:15]} 16. Qxd5 {[%emt 0:23:13]} cxd5 {[%emt 0:01:20]} 17. Nc3 {[%emt 0:00:24]} Rd8 {[%emt 0:00:03]} 18. Rhh1 {[%emt 0:03:43]} Bb4 {[%emt 0:00:19]} 19. Ne2 {[%emt 0:14:29]} Bd6 {[%emt 0:03:43]} 20. Ne5 {[%emt 0:04:03]} Nd7 {[%emt 0:01:59]} 21. Nxd7 {[%emt 0:01:24]} Rxd7 {[%emt 0:00:02]} 22. Kc2 {[%emt 0:00:11]} Ra8 {[%emt 0:04:13]} 23. Kd3 {[%emt 0:00:18]} Bb4 {[%emt 0:00:23]} 24. Rc1 {[%emt 0:02:37]} Rad8 {[%emt 0:00:53]} 25. Rc2 {[%emt 0:00:37]} Kf8 {[%emt 0:00:26]} 26. Nf4 {[%emt 0:01:11]} Bd6 {[%emt 0:00:44]} 27. Ng2 {[%emt 0:00:13]} (27. Nxd5 Bxg3 28. fxg3 Rxd5 $17) 27... Rc7 {[%emt 0:00:54]} (27... h5 $11 {keeps the balance.}) 28. Rxc7 $16 {[%emt 0:01:00]} Bxc7 {[%emt 0:00:18]} 29. Rc1 {[%emt 0:00:08]} Bb8 {[%emt 0:04:23]} 30. Ne3 {[%emt 0:06:48]} Ke7 {[%emt 0:00:05]} 31. Re1 {[%emt 0:00:41]} Kf8 {[%emt 0:06:48]} 32. Rc1 {[%emt 0:00:06]} Ke7 {[%emt 0:00:04]} 33. Re1 {[%emt 0:00:04]} Kf8 $1 {[%emt 0:00:03]} 34. b4 {[%emt 0:03:28]} g6 {[%emt 0:08:46]} 35. b5 {[%emt 0:02:54]} axb5 {[%emt 0:01:11]} 36. Rb1 {[%emt 0:00:01]} Bd6 $1 {[%emt 0:00:29]} 37. Rxb5 {[%emt 0:00:56]} Ra8 {[%emt 0:00:05]} 38. Nxd5 {[%emt 0:02:58]} Rxa2 {[%emt 0:00:17]} 39. Nc3 {[%emt 0:01:25]} (39. Rxb7 Rxf2 40. g4 Rh2 $15) 39... Ra7 $1 {[%emt 0:01:55]} 40. h5 {[%emt 0:00:51]} Ke8 {[%emt 0:01:59]} 41. Nd5 {[%emt 0:31:03]} Kd7 {[%emt 0:30:48]} 42. Rb6 {[%emt 0:00:16]} Ra3+ {[%emt 0:03:11]} 43. Ke2 {[%emt 0:00:07]} Ra2+ {[%emt 0:00:04]} 44. Kf3 {[%emt 0:00:21]} Ra5 {[%emt 0:00:14]} 45. Ne3 {[%emt 0:01:03]} Ra7 {[%emt 0:00:45]} 46. g4 {[%emt 0:00:48]} Bc7 {[%emt 0:00:48]} 47. Rb5 {[%emt 0:00:30]} (47. Rf6 $5 Ke8 $8 48. Ke4 $11) 47... b6 {[%emt 0:00:20]} 48. d5 {[%emt 0:00:28]} gxh5 {[%emt 0:00:22]} 49. gxh5 {[%emt 0:00:04]} Ra4 {[%emt 0:00:04]} 50. Ke2 {[%emt 0:00:47]} Rh4 {[%emt 0:01:23]} 51. d6 {[%emt 0:00:39]} Bd8 {[%emt 0:06:52]} 52. Rf5 {[%emt 0:00:29]} Ke6 {[%emt 0:00:38]} 53. f4 {[%emt 0:00:35]} Rh3 {[%emt 0:01:35]} 54. Re5+ {[%emt 0:00:00]} Kxd6 {[%emt 0:00:08]} 55. Rd5+ {[%emt 0:00:34]} Kc7 {[%emt 0:00:11]} 56. Rf5 {[%emt 0:00:11]} f6 {[%emt 0:00:52]} 57. Kd3 {[%emt 0:01:09]} Rh1 {[%emt 0:01:31]} 58. Kd4 {[%emt 0:00:36] [#]} (58. Ke4 $15) 58... Ra1 $1 $17 {[%emt 0:00:38]} 59. Nd5+ {[%emt 0:00:26]} Kd6 {[%emt 0:00:21]} 60. Nc3 {[%emt 0:00:01]} (60. Nxf6 $2 {loses.} Ke6 61. Re5+ Kxf6 $19) 60... Ra5 {[%emt 0:03:21]} 61. Rb5 {[%emt 0:01:02]} Rxb5 {[%emt 0:04:07]} 62. Nxb5+ {[%emt 0:00:02]} Ke6 {[%emt 0:00:07]} 63. Ke4 {[%emt 0:00:51]} f5+ {[%emt 0:00:12]} 64. Kd4 {[%emt 0:00:07]} Bf6+ {[%emt 0:02:50]} 65. Kc4 {[%emt 0:00:05]} Bb2 {[%emt 0:02:41]} (65... Be7 $17 {aiming for ...Bd6.} 66. Nc7+ Kd7) 66. Nc7+ $1 $15 {[%emt 0:00:25]} Kd6 {[%emt 0:01:25]} 67. Na8 {[%emt 0:01:11]} (67. Nb5+ $15 {feels stronger.} Ke7 68. Nc7) 67... b5+ $17 {[%emt 0:00:56]} 68. Kxb5 {[%emt 0:00:01]} Kd5 {[%emt 0:00:03]} ({Don't blunder} 68... Bc1 $2 69. Nb6 $19) (68... Bd4 $17 69. Kc4 Be3) 69. Nc7+ $1 $11 {[%emt 0:00:17]} Ke4 {[%emt 0:00:03]} 70. Ne6 {[%emt 0:00:35]} h6 {[%emt 0:00:37]} 71. Kc4 {[%emt 0:01:07]} Bc1 {[%emt 0:00:40]} (71... Kf3 $5 72. Kd3 $8 Bc1 73. Nd4+ Kg4 $19) 72. Ng7 {[%emt 0:00:50]} ({Avoid the trap} 72. Nc5+ $2 Kf3 73. Kd3 Bxf4 $19) 72... Bxf4 {[%emt 0:00:20]} 73. Nxf5 $1 {[%emt 0:00:07]} Kxf5 {[%emt 0:00:02]} 74. Kd3 {[%emt 0:00:05]} Kg4 {[%emt 0:00:04]} 75. Ke2 {[%emt 0:00:04]} Kg3 {[%emt 0:00:05]} 76. Kf1 {[%emt 0:00:05]} Be3 {[%emt 0:00:32]} 77. Ke2 {[%emt 0:00:04]} Ba7 {[%emt 0:00:09]} 78. Kf1 {[%emt 0:00:06]} Bf2 {[%emt 0:00:05]} 79. Ke2 {[%emt 0:00:04]} Kg2 {[%emt 0:00:04]} 80. Kd2 {[%emt 0:01:28]} Kf3 {[%emt 0:00:33]} 81. Kd3 {[%emt 0:00:19]} Be3 {[%emt 0:00:04]} 82. Kc2 {[%emt 0:00:17]} Ke2 {[%emt 0:00:22]} 83. Kc3 {[%emt 0:02:35]} Bb6 {[%emt 0:00:10]} 84. Kc2 {[%emt 0:00:11]} Bd4 {[%emt 0:00:30]} 85. Kc1 {[%emt 0:00:13]} Be3+ {[%emt 0:00:23]} 86. Kc2 {[%emt 0:00:01]} Bd2 {[%emt 0:00:05]} 87. Kb2 {[%emt 0:00:22]} Kd3 {[%emt 0:00:27]} 88. Kb1 {[%emt 0:00:25]} Kc3 {[%emt 0:00:37]} 89. Ka2 {[%emt 0:01:22]} Kc2 {[%emt 0:00:28]} 90. Ka1 {[%emt 0:00:21]} Be3 {[%emt 0:00:33]} 91. Ka2 {[%emt 0:00:13]} Bd4 {[%emt 0:00:03]} 92. Ka3 {[%emt 0:00:06]} Bf6 {[%emt 0:01:11]} 93. Ka2 {[%emt 0:00:06]} Bg7 {[%emt 0:00:14]} 94. Ka3 {[%emt 0:00:09]} Kb1 {[%emt 0:00:07]} 95. Kb3 {[%emt 0:00:05]} Bb2 {[%emt 0:00:04]} 96. Kc4 {[%emt 0:00:24]} Kc2 {[%emt 0:00:03]} 97. Kb4 {[%emt 0:00:04]} Bd4 {[%emt 0:00:19]} 98. Ka3 {[%emt 0:00:06]} Kb1 {[%emt 0:05:11]} 99. Kb3 {[%emt 0:00:02]} Bb2 {[%emt 0:00:06]} 100. Kc4 {[%emt 0:00:09]} Kc2 {[%emt 0:00:06]} 101. Kb4 {[%emt 0:00:03]} Bc1 {[%emt 0:02:06]} 102. Kc4 {[%emt 0:00:41]} Be3 {[%emt 0:00:04]} 103. Kb4 {[%emt 0:00:14]} Bd4 {[%emt 0:00:06]} 104. Ka3 {[%emt 0:00:11]} Kc3 {[%emt 0:00:57]} 105. Ka2 $1 {[%emt 0:00:18]} Kd2 {[%emt 0:01:47]} 106. Kb1 {[%emt 0:00:52]} Kd1 {[%emt 0:04:46]} 107. Ka2 {[%emt 0:00:02]} Kc2 {[%emt 0:00:07]} 108. Ka3 {[%emt 0:00:06]} Bc5+ {[%emt 0:00:42]} 109. Ka2 {[%emt 0:00:12]} Bb4 {[%emt 0:00:35]} 110. Ka1 {[%emt 0:00:06]} Bc3+ {[%emt 0:00:05]} 111. Ka2 {[%emt 0:00:06]} Bb2 {[%emt 0:00:03]} 1/2-1/2

[Event "Lliga Catalana DH 2023"]
[Site "Catalonia"]
[Date "2023.04.15"]
[Round "11.1"]
[White "Guerra Mendez, Jose Angel"]
[Black "Almeida Quintana, Omar"]
[Result "1/2-1/2"]
[ECO "B06"]
[WhiteElo "2497"]
[BlackElo "2527"]
[Annotator "TA"]
[PlyCount "77"]
[EventDate "2023.01.24"]
[EventType "team-tourn"]
[EventCountry "ESP"]
[SourceTitle "playchess.com"]
[Source "ChessBase"]
[SourceQuality "1"]
[TimeControl "40/5400+30:1800+30"]

{[%evp 11,77,11,24,16,19,11,18,3,4,0,0,0,0,0,0,0,20,32,39,-13,-3,-4,0,22,29,-31,-24,-44,-27,-35,-30,-54,-45,-44,-43,-44,0,-36,-41,-32,-41,-37,-20,-18,-16,-32,-19,-18,-19,-19,-5,-16,0,0,20,-50,-50,-50,-38,-77,-77,-77,-72,-339,-435,-433,-372,-299]} 1. e4 g6 2. d4 Bg7 3. Nc3 d6 4. Be3 a6 5. Qd2 b5 6. Bd3 Nd7 7. a4 {B06: Modern Defence.} b4 8. Nce2 c5 9. Nf3 {The position is equal.} Ngf6 10. Bh6 Bxh6 11. Qxh6 {[#] Hoping for e5.} cxd4 12. Nfxd4 Bb7 13. f3 {[#]} Nc5 $146 ({Predecessor:} 13... d5 14. exd5 Bxd5 15. O-O e5 16. Nb3 Qe7 17. Rad1 Nb6 18. Rfe1 Nxa4 19. Rb1 Bxb3 20. cxb3 {1-0 Baer,L-Keller,G (1200) DESC VM2001 fin email}) 14. O-O Rc8 15. Qd2 ({Better is} 15. Rfd1 $14) 15... e5 16. Nb3 Nxb3 17. cxb3 a5 18. Qe3 (18. Qh6 $11) 18... O-O $15 19. Rfd1 Qe7 20. Bc4 Rfd8 21. Qa7 Ra8 22. Qf2 Kg7 23. Ng3 h5 24. Nf1 d5 25. exd5 Nxd5 26. Re1 {[%cal Of3f4]} Qg5 27. Qg3 Qxg3 28. hxg3 f6 29. Rad1 Nb6 30. Kf2 Rac8 31. Ne3 Rd4 32. Be2 Rcd8 33. Nc4 {Wards off Rd2} ({White should try} 33. Rxd4 $11 exd4 34. Nc4 Nxc4 35. Bxc4) 33... Nxc4 34. bxc4 Bc6 35. b3 f5 {[%cal Bf6f5,Bf5f4][%mdl 32] White must now prevent ...Rxd1.} 36. Rxd4 Rxd4 37. Rd1 $2 {[%mdl 8192] [#] Prevents Rd2} (37. Ke3 $17) 37... Rxd1 $19 38. Bxd1 f4 39. Bc2 {[%mdl 32768] Weighted Error Value: White=0.30/Black=0.06 (flawless) . An unexpected result.} 1/2-1/2

[Event "Lliga Catalana DH 2023"]
[Site "Catalonia"]
[Date "2023.04.15"]
[Round "11.2"]
[White "Magem Badals, Jordi"]
[Black "Aloma Vidal, Robert"]
[Result "1/2-1/2"]
[ECO "C24"]
[WhiteElo "2510"]
[BlackElo "2446"]
[Annotator "TA"]
[PlyCount "60"]
[EventDate "2023.01.24"]
[EventType "team-tourn"]
[EventCountry "ESP"]
[SourceTitle "playchess.com"]
[Source "ChessBase"]
[SourceQuality "1"]
[TimeControl "40/5400+30:1800+30"]

{[%evp 9,60,0,6,-20,-12,-12,-10,-17,0,-19,-28,-32,0,-56,-50,-71,-60,-67,-65,-64,-57,-62,-32,-78,43,-51,-59,-60,-59,-60,-59,-74,-40,-88,-84,-96,-83,-83,-71,-68,-68,-86,-40,-40,-40,-40,-54,-34,0,0,0,-33,0]} 1. e4 {[%emt 0:00:05]} e5 {[%emt 0:01:06]} 2. Bc4 {[%emt 0:01:05]} Nf6 {[%emt 0:00:58]} 3. d3 {[%emt 0:00:31]} c6 {[%emt 0:08:55]} 4. Nf3 {[%emt 0:02:15]} d5 {[%emt 0:00:08]} 5. Bb3 {[%emt 0:00:08]} a5 {[%emt 0:01:53][%cal Ba7a5,Ba5a4][%mdl 32] [#] Strongly threatening ...a4.} 6. a3 {[%emt 0:10:15] C24: Bishop's Opening: 2...Nf6.} (6. Nxe5 $2 a4 7. Bxa4 Rxa4 $19) 6... a4 {[%emt 0:07:48]} (6... dxe4 7. Nxe5 Be6 8. Bxe6 fxe6 9. Nc3 $14) 7. Ba2 {[%emt 0:00:11]} Bd6 {[%emt 0:03:28]} (7... dxe4 8. Ng5 Be6 9. Bxe6 (9. dxe4 Qxd1+ 10. Kxd1 Bxa2 $15) (9. Nxe6 fxe6 10. Bxe6 Na6 $11) 9... fxe6 10. dxe4 (10. Nxe4 Nxe4 11. dxe4 Qxd1+ 12. Kxd1 c5 $11) (10. Nxe6 Qd6 $11) 10... Qxd1+ 11. Kxd1) 8. exd5 {[%emt 0:11:16] The position is equal.} cxd5 {[%emt 0:04:05]} 9. Bg5 {[%emt 0:02:53]} Be6 {[%emt 0:10:46]} 10. O-O {[%emt 0:11:53]} Nc6 {[%emt 0:05:35]} 11. Nc3 {[%emt 0:09:36]} (11. Re1 $11) 11... Ra5 $15 {[%emt 0:04:37]} 12. Re1 {[%emt 0:10:30]} h6 {[%emt 0:09:10]} 13. Bh4 {[%emt 0:05:14]} O-O {[%emt 0:00:59]} 14. h3 {[%emt 0:00:17]} Re8 {[%emt 0:03:50]} 15. Qd2 {[%emt 0:03:11]} Bc7 {[%emt 0:04:24]} 16. Re2 {[%emt 0:18:19] [#]} (16. Qc1 $15) 16... d4 $146 {[%emt 0:13:09]} (16... Nd4 $17 {aiming for ...Nxf3+.} 17. Nxd4 exd4 18. Bxf6 gxf6) ({Predecessor:} 16... Kh8 17. Rae1 d4 18. Ne4 Nxe4 19. Rxe4 Qd7 20. Bf6 Kg8 21. Rh4 Bd8 22. Bxg7 f5 23. Qxh6 Qxg7 24. Bxe6+ {1-0 Beerdsen,T (2519)-Kollars,D (2606) Titled Tuesday intern op 14th Feb Early blitz 2023 (3)}) 17. Bxf6 {[%emt 0:05:59]} (17. Ne4 $14 g5 18. Nexg5 (18. Bxg5 Nxe4 19. Bxd8 Nxd2 $11) 18... Bxa2 19. Ne4 (19. Rxa2 Qd5 $14) 19... Nxe4 20. dxe4 (20. Rxe4 Qd6 $11)) 17... Qxf6 {[%emt 0:01:01]} 18. Ne4 {[%emt 0:00:08]} Qd8 {[%emt 0:01:34]} 19. Bxe6 {[%emt 0:00:45]} Rxe6 {[%emt 0:00:07]} 20. c3 {[%emt 0:02:53]} dxc3 {[%emt 0:06:59]} (20... f5 $5 {[%cal Rf5e4]} 21. Ng3 e4 $15) 21. Qxc3 {[%emt 0:01:28]} (21. bxc3 $15 Rd5 22. Qc2) 21... Bb6 $17 {[%emt 0:01:16]} 22. Qc4 {[%emt 0:00:16]} Rd5 {[%emt 0:01:10]} 23. Rd1 {[%emt 0:00:48]} Nd4 {[%emt 0:00:59]} 24. Nxd4 {[%emt 0:00:05]} Rxd4 {[%emt 0:00:18]} 25. Qb5 {[%emt 0:00:31] [#]} Qd5 {[%emt 0:03:16]} (25... Kh7 $1 $17) 26. Nc3 $15 {[%emt 0:00:41]} Qxb5 {[%emt 0:01:04]} 27. Nxb5 {[%emt 0:00:02]} Rd5 {[%emt 0:01:10]} 28. Nc3 {[%emt 0:00:01][%csl LRa4,LRd5]} Rd4 {[%emt 0:00:27]} 29. Nb5 {[%emt 0:01:21]} Rd5 {[%emt 0:00:27]} 30. Nc3 {[%emt 0:00:02][%csl LRa4,LRd5]} Rd4 {[%emt 0:00:31] Weighted Error Value: White=0.20 (precise) /Black=0.18 (very precise)} 1/2-1/2